fUSD/lending_fUSD_20250120
["ID","MTS","AMOUNT","RATE_DAILY","PERIOD"]
[349648067,1737355843135,-1055.51821991,0.00021247,2]
[349648068,1737355843145,-2.57707304,0.00021248,2]
[349648069,1737355843155,-1004.40021361,0.00021248,2]
[349648070,1737355843165,-1254.77,0.00021248,2]
[349648071,1737355843174,-500.0,0.00021248,2]
[349648072,1737355843184,-500.0,0.00021248,2]
[349648073,1737355843194,-1945.8,0.00021248,2]
[349648074,1737355843203,-500.0,0.00021248,2]
[349648075,1737355843212,-500.0,0.00021248,2]
[349648076,1737355843222,-1170.09,0.00021248,2]
[349648077,1737355843231,-1012.09742828,0.00021248,2]
[349648078,1737355843243,-612.07394972,0.00021248,2]
[349648079,1737355843252,-1506.48675044,0.00021248,2]
[349648080,1737355843262,-117.68462756,0.00021248,2]
[349648081,1737355843273,-367.55337245,0.00021248,2]
[349648124,1737355843724,-500.0,0.00020973,2]
[349648126,1737355843734,-632.37281664,0.00020973,2]
[349648128,1737355843744,-500.0,0.00020974,2]
[349648130,1737355843754,-170.82950112,0.00021045,2]
[349648132,1737355843764,-500.0,0.00021247,2]
[349648134,1737355843773,-17.45029313,0.00021248,2]
[349648143,1737355843874,-1239.16771242,0.00021248,2]
[349648144,1737355843884,-976.62,0.00021248,2]
[349648145,1737355843893,-1122.7,0.00021248,2]
[349648146,1737355843903,-537.98,0.00021248,2]
[349648147,1737355843912,-500.0,0.00021248,2]
[349648148,1737355843921,-500.0,0.00021248,2]
[349648149,1737355843932,-500.0,0.00021248,2]
[349648150,1737355843949,-1120.72924085,0.00021248,2]
[349648151,1737355843962,-628.67075915,0.00021248,2]
[349648152,1737355843971,-272.46232501,0.00021248,2]
[349648153,1737355843983,-293.23767499,0.00021248,2]
[349648154,1737355843994,-37.82232501,0.00021248,2]
[349648155,1737355844367,-499.76767499,0.00021248,2]
[349648156,1737355844376,-500.0,0.00021248,2]
[349648157,1737355844386,-500.0,0.00021248,2]
[349648158,1737355844396,-500.0,0.00021248,2]
[349648159,1737355844406,-500.0,0.00021248,2]
[349648160,1737355844416,-1534.38,0.00021248,2]
[349648161,1737355844426,-500.0,0.00021248,2]
[349648162,1737355844435,-1058.62,0.00021248,2]
[349648163,1737355844445,-683.38,0.00021248,2]
[349648164,1737355844454,-770.25,0.00021248,2]
[349648165,1737355844464,-524.03,0.00021248,2]
[349648166,1737355844473,-2326.36,0.00021248,2]
[349648167,1737355844483,-526.89,0.00021248,2]
[349648168,1737355844492,-500.0,0.00021248,2]
[349648169,1737355844503,-500.0,0.00021248,2]
[349648170,1737355844513,-977.05,0.00021248,2]
[349648171,1737355844522,-4374.19,0.00021248,2]
[349648172,1737355844532,-1765.38,0.00021248,2]
[349648173,1737355844542,-2109.24,0.00021248,2]
[349648174,1737355844551,-500.0,0.00021248,2]
[349648175,1737355844562,-500.0,0.00021248,2]
[349648176,1737355844572,-1318.3,0.00021248,2]
[349648177,1737355844581,-2053.24,0.00021248,2]
[349648178,1737355844591,-500.0,0.00021248,2]
[349648179,1737355844600,-500.0,0.00021248,2]
[349648180,1737355844610,-790.86,0.00021248,2]
[349648181,1737355844620,-1728.48,0.00021248,2]
[349648182,1737355844629,-1253.05,0.00021248,2]
[349648183,1737355844639,-948.27,0.00021248,2]
[349648184,1737355844649,-1090.85,0.00021248,2]
[349648185,1737355844658,-500.0,0.00021248,2]
[349648186,1737355844668,-6037.36,0.00021248,2]
[349648187,1737355844679,-1259.22,0.00021248,2]
[349648188,1737355844688,-500.0,0.00021248,2]
[349648189,1737355844698,-500.0,0.00021248,2]
[349648190,1737355844707,-559.27,0.00021248,2]
[349648191,1737355844717,-151.0,0.00021248,2]
[349648192,1737355844727,-151.0,0.00021248,2]
[349648193,1737355844737,-151.0,0.00021248,2]
[349648194,1737355844747,-151.0,0.00021248,2]
[349648195,1737355844756,-151.0,0.00021248,2]
[349648196,1737355844766,-547.06,0.00021248,2]
[349648197,1737355844775,-151.0,0.00021248,2]
[349648198,1737355844784,-3009.8,0.00021248,2]
[349648199,1737355844794,-500.0,0.00021248,2]
[349648200,1737355844805,-500.0,0.00021248,2]
[349648201,1737355844815,-275.89316069,0.00021248,2]
[349648202,1737355844825,-500.0,0.00021248,2]
[349648203,1737355844834,-500.0,0.00021248,2]
[349648204,1737355844844,-500.0,0.00021248,2]
[349648205,1737355844854,-1061.48,0.00021248,2]
[349648206,1737355844863,-686.93,0.00021248,2]
[349648207,1737355844872,-2494.18,0.00021248,2]
[349648208,1737355844882,-500.0,0.00021248,2]
[349648209,1737355844891,-872.88,0.00021248,2]
[349648210,1737355844901,-500.0,0.00021248,2]
[349648211,1737355844911,-500.0,0.00021248,2]
[349648212,1737355844922,-2096.23,0.00021248,2]
[349648213,1737355844931,-1228.34,0.00021248,2]
[349648214,1737355844940,-500.0,0.00021248,2]
[349648215,1737355844950,-1019.54,0.00021248,2]
[349648216,1737355844959,-500.0,0.00021248,2]
[349648217,1737355844969,-500.0,0.00021248,2]
[349648218,1737355844981,-740.7,0.00021248,2]
[349648219,1737355844991,-1995.48,0.00021248,2]
[349648220,1737355845001,-2681.29,0.00021248,2]
[349648221,1737355845011,-500.0,0.00021248,2]
[349648222,1737355845020,-1058.54,0.00021248,2]
[349648223,1737355845030,-3506.87,0.00021248,2]
[349648224,1737355845039,-500.0,0.00021248,2]
[349648225,1737355845048,-2342.51,0.00021248,2]
[349648226,1737355845060,-6994.9,0.00021248,2]
[349648227,1737355845069,-2124.78,0.00021248,2]
[349648228,1737355845078,-500.0,0.00021248,2]
[349648229,1737355845087,-1009.01,0.00021248,2]
[349648230,1737355845096,-738.12,0.00021248,2]
[349648231,1737355845106,-151.0,0.00021248,2]
[349648232,1737355845115,-151.0,0.00021248,2]
[349648233,1737355845124,-151.0,0.00021249,2]
[349648234,1737355845134,-185.487026,0.00021249,2]
[349648235,1737355845142,-193.006384,0.00021249,2]
[349648236,1737355845152,-193.006384,0.00021249,2]
[349648237,1737355845162,-1660.21,0.00021249,2]
[349648238,1737355845172,-500.0,0.00021249,2]
[349648239,1737355845181,-784.93,0.00021249,2]
[349648240,1737355845191,-500.0,0.00021249,2]
[349648241,1737355845201,-500.0,0.00021249,2]
[349648242,1737355845211,-925.91,0.00021249,2]
[349648243,1737355845220,-500.0,0.00021249,2]
[349648244,1737355845230,-566.81,0.00021249,2]
[349648245,1737355845240,-500.0,0.00021249,2]
[349648246,1737355845250,-228.984806,0.00021249,2]
[349648247,1737355845259,-151.0,0.00021249,2]
[349648248,1737355845268,-204.49719324,0.00021275,2]
[349648249,1737355845278,-925.0,0.000213,2]
[349648250,1737355845287,-733.0,0.000213,2]
[349648251,1737355845296,-1000.0,0.000213,2]
[349648252,1737355845308,-204.49719324,0.00021317,2]
[349648253,1737355845317,-204.49719324,0.00021358,2]
[349648254,1737355845327,-154.61801275,0.00021387,2]
[349648255,1737355845336,-204.49719324,0.000214,2]
[349648256,1737355845352,-176.87,0.0002141,2]
[349648258,1737355845361,-293.7115499,0.00021422,2]
[349648259,1737355845371,-204.49719324,0.00021442,2]
[349648261,1737355845380,-150.0,0.00021461,2]
[349648263,1737355845390,-150.0,0.00021461,2]
[349648265,1737355845400,-169.92809348,0.00021461,2]
[349648267,1737355845411,-150.26826956,0.00021461,2]
[349648269,1737355845422,-267.26695399,0.00021461,2]
[349648270,1737355845431,-150.0,0.00021461,2]
[349648272,1737355845441,-500.0,0.00021461,2]
[349648273,1737355845451,-150.39000961,0.00021461,2]
[349648274,1737355845460,-150.14354271,0.00021461,2]
[349648275,1737355845469,-150.0,0.00021461,2]
[349648276,1737355845483,-150.0,0.00021461,2]
[349648277,1737355845492,-500.0,0.00021461,2]
[349648278,1737355845501,-5115.0,0.00021463,7]
[349648279,1737355845511,-204.49719324,0.00021483,2]
[349648281,1737355845521,-150.0,0.00021488,2]
[349648282,1737355845530,-150.0,0.00021488,2]
[349648283,1737355845540,-150.0,0.00021488,2]
[349648284,1737355845555,-500.0,0.00021488,2]
[349648285,1737355845565,-150.0,0.00021488,2]
[349648286,1737355845576,-500.0,0.00021488,2]
[349648287,1737355845585,-3880.3482472,0.000215,2]
[349648288,1737355845595,-293.71154988,0.00021502,2]
[349648289,1737355845606,-1269.0,0.00021507,2]
[349648290,1737355845616,-2017.0,0.00021507,2]
[349648291,1737355845625,-260.549,0.00021507,2]
[349648292,1737355845635,-635.0,0.00021507,2]
[349648293,1737355845644,-571.19,0.00021507,2]
[349648294,1737355845654,-1863.0,0.00021507,2]
[349648295,1737355845664,-820.0,0.00021507,2]
[349648296,1737355845674,-2947.0,0.00021507,2]
[349648297,1737355845684,-907.0,0.00021507,2]
[349648298,1737355845694,-1261.0,0.00021507,2]
[349648299,1737355845704,-537.0,0.00021507,2]
[349648300,1737355845713,-3983.0,0.00021507,2]
[349648301,1737355845722,-3891.0,0.00021507,2]
[349648302,1737355845732,-150.0,0.00021507,2]
[349648303,1737355845742,-1105.0,0.00021507,2]
[349648304,1737355845751,-150.248,0.00021507,2]
[349648305,1737355845760,-185.564205,0.00021507,2]
[349648306,1737355845770,-151.0,0.00021507,2]
[349648307,1737355845780,-150.0,0.00021516,2]
[349648308,1737355845790,-281.21293473,0.00021516,2]
[349648309,1737355845800,-150.0,0.00021516,2]
[349648310,1737355845811,-500.0,0.00021516,2]
[349648311,1737355845820,-201.4281949,0.00021516,2]
[349648312,1737355845829,-500.0,0.00021516,2]
[349648313,1737355845839,-193.006384,0.00021521,2]
[349648314,1737355845848,-193.006384,0.00021521,2]
[349648315,1737355845859,-226.91114887,0.00021521,2]
[349648316,1737355845868,-500.0,0.00021521,2]
[349648317,1737355845877,-500.0,0.00021521,2]
[349648318,1737355845887,-500.0,0.00021521,2]
[349648319,1737355845895,-500.0,0.00021521,2]
[349648320,1737355845905,-611.24,0.00021521,2]
[349648321,1737355845915,-500.0,0.00021521,2]
[349648322,1737355845924,-151.0,0.00021521,2]
[349648323,1737355845934,-500.0,0.00021521,2]
[349648324,1737355845943,-500.0,0.00021521,2]
[349648325,1737355845953,-200.0,0.00021521,2]
[349648326,1737355845962,-607.41,0.00021521,2]
[349648327,1737355845971,-1312.92,0.00021521,2]
[349648328,1737355845981,-500.0,0.00021521,2]
[349648329,1737355845991,-4024.38,0.00021521,2]
[349648330,1737355846000,-683.06,0.00021521,2]
[349648331,1737355846010,-1624.171378,0.00021521,2]
[349648332,1737355846019,-1788.27,0.00021521,2]
[349648333,1737355846028,-500.0,0.00021521,2]
[349648334,1737355846038,-1145.63,0.00021521,2]
[349648335,1737355846047,-2154.87,0.00021521,2]
[349648336,1737355846057,-1427.0,0.00021521,2]
[349648337,1737355846066,-500.0,0.00021521,2]
[349648338,1737355846222,-2980.01,0.00021521,2]
[349648339,1737355846233,-1269.19,0.00021521,2]
[349648340,1737355846243,-500.0,0.00021521,2]
[349648341,1737355846253,-1760.16,0.00021521,2]
[349648342,1737355846262,-1065.49,0.00021521,2]
[349648343,1737355846272,-1054.38,0.00021521,2]
[349648344,1737355846282,-546.06,0.00021521,2]
[349648345,1737355846292,-2016.08,0.00021521,2]
[349648346,1737355846301,-1982.72,0.00021521,2]
[349648347,1737355846312,-1437.27,0.00021521,2]
[349648348,1737355846322,-2714.39,0.00021521,2]
[349648349,1737355846332,-500.0,0.00021521,2]
[349648350,1737355846342,-754.29,0.00021521,2]
[349648351,1737355846351,-695.44,0.00021521,2]
[349648352,1737355846364,-276.32648131,0.00021521,2]
[349648353,1737355846374,-500.0,0.00021521,2]
[349648354,1737355846384,-746.76,0.00021521,2]
[349648356,1737355846393,-645.69,0.00021521,2]
[349648358,1737355846404,-1595.76,0.00021521,2]
[349648360,1737355846413,-1407.56,0.00021521,2]
[349648362,1737355846423,-4501.6,0.00021521,2]
[349648364,1737355846434,-4328.29,0.00021521,2]
[349648365,1737355846444,-500.0,0.00021521,2]
[349648366,1737355846454,-3493.82,0.00021521,2]
[349648367,1737355846464,-1372.98,0.00021521,2]
[349648368,1737355846473,-1974.03,0.00021521,2]
[349648369,1737355846483,-575.68,0.00021521,2]
[349648370,1737355846492,-500.0,0.00021521,2]
[349648371,1737355846501,-705.07,0.00021521,2]
[349648372,1737355846510,-551.1,0.00021521,2]
[349648373,1737355846519,-164.74661609,0.00021521,2]
[349648375,1737355846528,-1989.78,0.00021521,2]
[349648377,1737355846538,-500.0,0.00021521,2]
[349648378,1737355846547,-500.0,0.00021521,2]
[349648379,1737355846560,-926.39,0.00021521,2]
[349648380,1737355846570,-583.75,0.00021521,2]
[349648381,1737355846580,-1731.51,0.00021521,2]
[349648382,1737355846594,-581.9,0.00021521,2]
[349648383,1737355846604,-973.63,0.00021521,2]
[349648384,1737355846613,-500.0,0.00021521,2]
[349648385,1737355846622,-707.26,0.00021521,2]
[349648386,1737355846632,-316.548498,0.00021521,2]
[349648387,1737355846642,-2696.64,0.00021521,2]
[349648388,1737355846651,-4877.87,0.00021521,2]
[349648389,1737355846661,-1547.21,0.00021521,2]
[349648390,1737355846670,-1277.3,0.00021521,2]
[349648391,1737355846679,-607.62413074,0.00021521,2]
[349648392,1737355846689,-165302.4583097,0.00021522,2]
[349648393,1737355846698,-500.0,0.00021522,2]
[349648394,1737355846707,-534.7890602,0.00021522,2]
[349648395,1737355846717,-500.0,0.00021522,2]
[349648396,1737355846726,-500.0,0.00021522,2]
[349648397,1737355846737,-875.88,0.00021522,2]
[349648398,1737355846747,-500.0,0.00021522,2]
[349648399,1737355846756,-500.0,0.00021522,2]
[349648400,1737355846767,-500.0,0.00021522,2]
[349648401,1737355846776,-500.0,0.00021522,2]
[349648402,1737355846786,-500.0,0.00021522,2]
[349648403,1737355846795,-894.41,0.00021522,2]
[349648404,1737355846807,-500.0,0.00021522,2]
[349648405,1737355846817,-715.15,0.00021522,2]
[349648406,1737355846826,-651.94,0.00021522,2]
[349648407,1737355846836,-500.0,0.00021522,2]
[349648408,1737355846846,-500.0,0.00021522,2]
[349648409,1737355846856,-193.006384,0.00021522,2]
[349648410,1737355846865,-193.006384,0.00021522,2]
[349648411,1737355846875,-193.006384,0.00021522,2]
[349648412,1737355846884,-193.006384,0.00021522,2]
[349648413,1737355846892,-1068.14,0.00021522,2]
[349648414,1737355846901,-597.34,0.00021522,2]
[349648415,1737355846910,-500.0,0.00021522,2]
[349648416,1737355846920,-732.77,0.00021522,2]
[349648417,1737355846929,-500.0,0.00021522,2]
[349648418,1737355846939,-582.3,0.00021522,2]
[349648419,1737355846949,-1283.5,0.00021522,2]
[349648420,1737355846958,-853.83,0.00021522,2]
[349648421,1737355846968,-500.0,0.00021522,2]
[349648422,1737355846978,-655.25,0.00021522,2]
[349648423,1737355846987,-604.91,0.00021522,2]
[349648424,1737355846996,-500.0,0.00021522,2]
[349648425,1737355847005,-548.92,0.00021522,2]
[349648426,1737355847015,-554.74722128,0.00021522,2]
[349648427,1737355847024,-500.0,0.00021522,2]
[349648428,1737355847034,-1256.42,0.00021522,2]
[349648429,1737355847043,-974.3,0.00021522,2]
[349648430,1737355847056,-500.0,0.00021522,2]
[349648431,1737355847066,-500.0,0.00021522,2]
[349648432,1737355847076,-500.0,0.00021522,2]
[349648433,1737355847086,-500.0,0.00021522,2]
[349648434,1737355847096,-500.0,0.00021522,2]
[349648435,1737355847109,-500.0,0.00021522,2]
[349648436,1737355847119,-504.42,0.00021522,2]
[349648437,1737355847128,-967.29,0.00021522,2]
[349648438,1737355847138,-500.0,0.00021522,2]
[349648439,1737355847148,-670.32,0.00021522,2]
[349648440,1737355847157,-500.0,0.00021522,2]
[349648441,1737355847167,-500.0,0.00021522,2]
[349648442,1737355847176,-500.0,0.00021522,2]
[349648443,1737355847186,-681.01,0.00021522,2]
[349648444,1737355847196,-500.0,0.00021522,2]
[349648445,1737355847206,-500.0,0.00021522,2]
[349648446,1737355847215,-500.0,0.00021522,2]
[349648447,1737355847226,-891.77,0.00021522,2]
[349648448,1737355847235,-648.18,0.00021522,2]
[349648449,1737355847245,-500.0,0.00021522,2]
[349648450,1737355847255,-500.0,0.00021522,2]
[349648451,1737355847264,-500.0,0.00021522,2]
[349648452,1737355847274,-500.0,0.00021522,2]
[349648453,1737355847284,-500.0,0.00021522,2]
[349648454,1737355847293,-1383.24,0.00021522,2]
[349648455,1737355847304,-500.0,0.00021522,2]
[349648456,1737355847314,-500.0,0.00021522,2]
[349648457,1737355847323,-500.0,0.00021522,2]
[349648458,1737355847333,-500.0,0.00021522,2]
[349648459,1737355847345,-1558.89,0.00021522,2]
[349648460,1737355847357,-192.5794041,0.00021522,2]
[349648461,1737355847367,-500.0,0.00021522,2]
[349648462,1737355847376,-1774.334993,0.00021522,2]
[349648463,1737355847387,-967.39,0.00021522,2]
[349648464,1737355847396,-500.0,0.00021522,2]
[349648465,1737355847406,-500.0,0.00021522,2]
[349648466,1737355847416,-2022.65,0.00021522,2]
[349648467,1737355847425,-740.09,0.00021522,2]
[349648468,1737355847437,-517.73,0.00021522,2]
[349648469,1737355847446,-500.0,0.00021522,2]
[349648470,1737355847458,-1007.06,0.00021522,2]
[349648471,1737355847469,-500.0,0.00021522,2]
[349648472,1737355847479,-167.56537546,0.00021522,2]
[349648473,1737355847488,-500.0,0.00021522,2]
[349648474,1737355847499,-500.0,0.00021522,2]
[349648475,1737355847509,-868.12,0.00021522,2]
[349648476,1737355847519,-1203.52,0.00021522,2]
[349648477,1737355847529,-500.0,0.00021522,2]
[349648478,1737355847538,-500.0,0.00021522,2]
[349648479,1737355847548,-855.54,0.00021522,2]
[349648480,1737355847560,-609.47,0.00021522,2]
[349648481,1737355847570,-201.34172399,0.00021522,2]
[349648482,1737355847579,-500.0,0.00021522,2]
[349648483,1737355847590,-1010.31,0.00021522,2]
[349648484,1737355847600,-500.0,0.00021522,2]
[349648485,1737355847610,-679.85,0.00021522,2]
[349648486,1737355847619,-1303.77,0.00021522,2]
[349648487,1737355847629,-628.48,0.00021522,2]
[349648488,1737355847639,-565.11,0.00021522,2]
[349648489,1737355847649,-1358.26,0.00021522,2]
[349648490,1737355847659,-1355.87,0.00021522,2]
[349648491,1737355847669,-540.26,0.00021522,2]
[349648492,1737355847678,-1205.56,0.00021522,2]
[349648493,1737355847688,-1049.56,0.00021522,2]
[349648494,1737355847698,-946.84,0.00021522,2]
[349648495,1737355847708,-500.0,0.00021522,2]
[349648496,1737355847718,-503.96,0.00021522,2]
[349648497,1737355847728,-500.0,0.00021522,2]
[349648498,1737355847737,-484.97931353,0.00021522,2]
[349648499,1737355847747,-1085.47,0.00021522,2]
[349648500,1737355847757,-1254.5,0.00021522,2]
[349648501,1737355847767,-500.0,0.00021522,2]
[349648502,1737355847777,-1151.86,0.00021522,2]
[349648503,1737355847786,-1525.59,0.00021522,2]
[349648504,1737355847795,-500.0,0.00021522,2]
[349648505,1737355847806,-880.11,0.00021522,2]
[349648506,1737355847815,-734.62,0.00021522,2]
[349648507,1737355847824,-500.0,0.00021522,2]
[349648508,1737355847833,-788.34,0.00021522,2]
[349648509,1737355847843,-500.0,0.00021522,2]
[349648510,1737355847853,-1657.05,0.00021522,2]
[349648511,1737355847863,-500.0,0.00021522,2]
[349648512,1737355847872,-500.0,0.00021522,2]
[349648513,1737355847880,-1192.18,0.00021522,2]
[349648514,1737355847889,-639.32,0.00021522,2]
[349648515,1737355847899,-716.92,0.00021522,2]
[349648516,1737355847908,-500.0,0.00021522,2]
[349648517,1737355847917,-500.0,0.00021522,2]
[349648518,1737355847926,-815.8,0.00021522,2]
[349648519,1737355847936,-1378.0,0.00021522,2]
[349648520,1737355847945,-638.63,0.00021522,2]
[349648521,1737355847955,-912.19,0.00021522,2]
[349648522,1737355847965,-302.81104823,0.00021522,2]
[349648523,1737355847975,-1212.09,0.00021522,2]
[349648524,1737355847986,-1097.61,0.00021522,2]
[349648525,1737355847995,-548.42,0.00021522,2]
[349648526,1737355848005,-786.49,0.00021522,2]
[349648527,1737355848015,-829.69,0.00021522,2]
[349648528,1737355848023,-3515.69,0.00021522,2]
[349648529,1737355848033,-500.0,0.00021522,2]
[349648530,1737355848043,-500.0,0.00021522,2]
[349648531,1737355848054,-500.0,0.00021522,2]
[349648532,1737355848065,-748.77,0.00021522,2]
[349648533,1737355848076,-532.47,0.00021522,2]
[349648534,1737355848085,-500.0,0.00021522,2]
[349648535,1737355848096,-2470.1,0.00021522,2]
[349648536,1737355848105,-1671.38,0.00021522,2]
[349648537,1737355848115,-500.0,0.00021522,2]
[349648538,1737355848124,-1179.1,0.00021522,2]
[349648539,1737355848134,-1823.31,0.00021522,2]
[349648540,1737355848144,-7711.81,0.00021522,2]
[349648541,1737355848153,-500.0,0.00021522,2]
[349648542,1737355848163,-7477.61,0.00021522,2]
[349648543,1737355848172,-595.63,0.00021522,2]
[349648544,1737355848181,-1629.88,0.00021522,2]
[349648545,1737355848191,-1254.77,0.00021522,2]
[349648546,1737355848201,-500.0,0.00021522,2]
[349648547,1737355848318,-500.0,0.00021522,2]
[349648548,1737355848328,-1945.8,0.00021522,2]
[349648549,1737355848338,-500.0,0.00021522,2]
[349648550,1737355848350,-500.0,0.00021522,2]
[349648551,1737355848361,-1170.09,0.00021522,2]
[349648552,1737355848371,-1624.171378,0.00021522,2]
[349648553,1737355848381,-1624.171378,0.00021522,2]
[349648554,1737355848390,-976.62,0.00021522,2]
[349648555,1737355848402,-1624.171378,0.00021522,2]
[349648556,1737355848412,-1122.7,0.00021522,2]
[349648557,1737355848422,-537.98,0.00021522,2]
[349648558,1737355848432,-500.0,0.00021522,2]
[349648559,1737355848442,-500.0,0.00021522,2]
[349648560,1737355848453,-1749.4,0.00021522,2]
[349648561,1737355848463,-565.7,0.00021522,2]
[349648562,1737355848473,-537.59,0.00021522,2]
[349648563,1737355848483,-500.0,0.00021522,2]
[349648564,1737355848494,-500.0,0.00021522,2]
[349648565,1737355848504,-500.0,0.00021522,2]
[349648566,1737355848513,-500.0,0.00021522,2]
[349648567,1737355848524,-1534.38,0.00021522,2]
[349648568,1737355848533,-500.0,0.00021522,2]
[349648569,1737355848543,-1058.62,0.00021522,2]
[349648570,1737355848554,-683.38,0.00021522,2]
[349648571,1737355848564,-770.25,0.00021522,2]
[349648572,1737355848574,-524.03,0.00021522,2]
[349648573,1737355848584,-2326.36,0.00021522,2]
[349648574,1737355848594,-526.89,0.00021522,2]
[349648575,1737355848604,-500.0,0.00021522,2]
[349648576,1737355848614,-500.0,0.00021522,2]
[349648577,1737355848624,-977.05,0.00021522,2]
[349648578,1737355848634,-4374.19,0.00021522,2]
[349648579,1737355848644,-1765.38,0.00021522,2]
[349648580,1737355848653,-2109.24,0.00021522,2]
[349648581,1737355848663,-465.32870677,0.00021522,2]
[349648582,1737355848673,-500.0,0.00021522,2]
[349648583,1737355848683,-1318.3,0.00021522,2]
[349648584,1737355848693,-2053.24,0.00021522,2]
[349648585,1737355848703,-500.0,0.00021522,2]
[349648586,1737355848713,-500.0,0.00021522,2]
[349648587,1737355848723,-790.86,0.00021522,2]
[349648588,1737355848732,-1728.48,0.00021522,2]
[349648589,1737355848742,-1253.05,0.00021522,2]
[349648590,1737355848752,-948.27,0.00021522,2]
[349648591,1737355848762,-1090.85,0.00021522,2]
[349648592,1737355848772,-500.0,0.00021522,2]
[349648593,1737355848782,-6037.36,0.00021522,2]
[349648594,1737355848792,-1259.22,0.00021522,2]
[349648595,1737355848802,-500.0,0.00021522,2]
[349648596,1737355848811,-500.0,0.00021522,2]
[349648597,1737355848821,-559.27,0.00021522,2]
[349648598,1737355848831,-547.06,0.00021522,2]
[349648599,1737355848841,-3009.8,0.00021522,2]
[349648600,1737355848850,-151.0,0.00021522,2]
[349648601,1737355848860,-500.0,0.00021522,2]
[349648602,1737355848869,-500.0,0.00021522,2]
[349648603,1737355848879,-518.13278933,0.00021522,2]
[349648604,1737355848889,-500.0,0.00021522,2]
[349648605,1737355848899,-500.0,0.00021522,2]
[349648606,1737355848909,-1061.48,0.00021522,2]
[349648607,1737355848919,-686.93,0.00021522,2]
[349648608,1737355848928,-2494.18,0.00021522,2]
[349648609,1737355848938,-500.0,0.00021522,2]
[349648610,1737355848947,-872.88,0.00021522,2]
[349648611,1737355848957,-216.59659281,0.00021522,2]
[349648612,1737355848966,-500.0,0.00021522,2]
[349648613,1737355848977,-2096.23,0.00021522,2]
[349648614,1737355848987,-1228.34,0.00021522,2]
[349648615,1737355848997,-500.0,0.00021522,2]
[349648616,1737355849007,-1019.54,0.00021522,2]
[349648617,1737355849017,-500.0,0.00021522,2]
[349648618,1737355849026,-500.0,0.00021522,2]
[349648619,1737355849036,-740.7,0.00021522,2]
[349648620,1737355849045,-1995.48,0.00021522,2]
[349648621,1737355849057,-2681.29,0.00021522,2]
[349648622,1737355849067,-500.0,0.00021522,2]
[349648623,1737355849077,-1058.54,0.00021522,2]
[349648624,1737355849087,-3506.87,0.00021522,2]
[349648625,1737355849097,-500.0,0.00021522,2]
[349648626,1737355849107,-2342.51,0.00021522,2]
[349648627,1737355849117,-6994.9,0.00021522,2]
[349648628,1737355849126,-2124.78,0.00021522,2]
[349648629,1737355849136,-500.0,0.00021522,2]
[349648630,1737355849145,-1009.01,0.00021522,2]
[349648631,1737355849155,-738.12,0.00021522,2]
[349648632,1737355849165,-193.006384,0.00021523,2]
[349648633,1737355849175,-193.006384,0.00021523,2]
[349648634,1737355849184,-1660.21,0.00021523,2]
[349648635,1737355849194,-500.0,0.00021523,2]
[349648636,1737355849203,-784.93,0.00021523,2]